fUST/lending_fUST_20240821
["ID","MTS","AMOUNT","RATE_DAILY","PERIOD"]
[335401281,1724191753918,-156.6552172,0.0002,2]
[335401282,1724191753948,-307.6830853,0.00021189,2]
[335401283,1724191754423,215.25982018,0.00014519,2]
[335401286,1724191770301,30.72017982,0.00014519,2]
[335401287,1724191770326,158.98580572,0.00014519,2]
[335401288,1724191770348,120.79900389,0.00014519,2]
[335401473,1724191838051,-500.0,0.0002013,2]
[335401475,1724191838062,-192.3169147,0.00021189,2]
[335401477,1724191838071,-500.0,0.00022249,2]
[335401479,1724191838081,-176.190147,0.0002255,2]
[335401482,1724191838091,-188.93065637,0.0002255,2]
[335401484,1724191838101,-473.51062889,0.00022551,2]
[335401486,1724191838111,-226.11908431,0.00022551,2]
[335401488,1724191838122,-126499.41497098,0.00022551,2]
[335401490,1724191838131,-1260.76755592,0.00022551,2]
[335401492,1724191838142,-287.15761358,0.00022551,2]
[335401495,1724191838152,-10511.84618177,0.00022551,2]
[335401499,1724191838161,-1260.76755592,0.00022551,2]
[335401503,1724191838171,-200.0,0.00023,2]
[335401507,1724191838180,-500.0,0.00023361,2]
[335401510,1724191838189,-500.0,0.00023959,2]
[335401514,1724191838199,-10342.93698711,0.00024283,2]
[335401518,1724191838209,-10342.93698711,0.00024286,2]
[335401522,1724191838218,-525.4761721,0.000245,2]
[335401525,1724191838228,-4529.9864651,0.00024531,2]
[335401527,1724191838238,-251.0,0.000246,2]
[335401530,1724191838249,-782.65797788,0.00024658,2]
[335401532,1724191838259,-160.83387276,0.00024662,2]
[335401534,1724191838268,-882.96114551,0.00024662,2]
[335401536,1724191838277,-158.7420052,0.00024717,15]
[335401538,1724191838286,-277.6716568,0.00024756,2]
[335401540,1724191838296,-157.4,0.00024869,2]
[335401542,1724191838306,-953.45396956,0.00024999,2]
[335401544,1724191838315,-503.74077904,0.00025,2]
[335401546,1724191838325,-154.62117811,0.00025084,2]
[335401548,1724191838334,-306.68770798,0.00025089,2]
[335401550,1724191838344,-157.4,0.00026316,2]
[335401552,1724191838353,-167.687355,0.00026398,2]
[335401554,1724191838363,-436.62,0.000266,31]
[335401556,1724191838374,-436.62,0.000266,31]
[335401558,1724191838383,-436.62,0.000266,31]
[335401560,1724191838393,-436.62,0.000266,31]
[335401562,1724191838403,-436.62,0.000266,31]
[335401563,1724191838412,-436.62,0.000266,31]
[335401564,1724191838422,-436.62,0.000266,31]
[335401565,1724191838431,-436.62,0.000266,31]
[335401566,1724191838441,-436.62,0.000266,31]
[335401567,1724191838451,-436.62,0.000266,31]
[335401568,1724191838461,-436.62,0.000266,31]
[335401569,1724191838471,-436.62,0.000266,31]
[335401570,1724191838480,-525.47617209,0.00027083,2]
[335401571,1724191838490,-232.296475,0.00027167,2]
[335401572,1724191838500,-157.4,0.00027763,2]
[335401573,1724191838509,-436.62,0.000286,31]
[335401574,1724191838518,-436.62,0.000286,31]
[335401575,1724191838530,-436.62,0.000286,31]
[335401576,1724191838542,-436.62,0.000286,31]
[335401578,1724191838552,-436.62,0.000286,31]
[335401580,1724191838562,-436.62,0.000286,31]
[335401582,1724191838572,-436.62,0.000286,31]
[335401583,1724191838582,-436.62,0.000286,31]
[335401584,1724191838592,-436.62,0.000286,31]
[335401585,1724191838601,-436.62,0.000286,31]
[335401586,1724191838611,-436.62,0.000286,31]
[335401587,1724191838625,-436.62,0.000286,31]
[335401588,1724191838635,-436.62,0.000286,31]
[335401589,1724191838645,-436.62,0.000286,31]
[335401590,1724191838655,-436.62,0.000286,31]
[335401591,1724191838664,-436.62,0.000286,31]
[335401592,1724191838674,-436.62,0.000286,31]
[335401593,1724191838683,-436.62,0.000286,31]
[335401594,1724191838694,-436.62,0.000286,31]
[335401595,1724191838704,-436.62,0.000286,31]
[335401596,1724191838714,-436.62,0.000286,31]
[335401597,1724191838724,-436.62,0.000286,31]
[335401598,1724191838734,-436.62,0.000286,31]
[335401599,1724191838745,-436.62,0.000286,31]
[335401600,1724191838756,-157.4,0.00029211,2]
[335401601,1724191838766,-500.0,0.00029303,2]
[335401602,1724191838775,-525.47617209,0.00029666,2]
[335401603,1724191838784,-255.27528526,0.0003,5]
[335401604,1724191838794,-213.0,0.0003,2]
[335401605,1724191838803,-237.0,0.0003,2]
[335401606,1724191838813,-500.0,0.00030206,7]
[335401607,1724191838823,-157.4,0.00030658,2]
[335401608,1724191838832,-500.0,0.0003066,21]
[335401609,1724191838842,-261.24,0.0003066,21]
[335401610,1724191838852,-436.62,0.000307,31]
[335401611,1724191838862,-436.62,0.000307,31]
[335401612,1724191838871,-436.62,0.000307,31]
[335401613,1724191838882,-436.62,0.000307,31]
[335401614,1724191838891,-436.62,0.000307,31]
[335401615,1724191838901,-436.62,0.000307,31]
[335401616,1724191838910,-436.62,0.000307,31]
[335401617,1724191838920,-436.62,0.000307,31]
[335401618,1724191838930,-436.62,0.000307,31]
[335401619,1724191838939,-436.62,0.000307,31]
[335401620,1724191838949,-436.62,0.000307,31]
[335401621,1724191838959,-436.62,0.000307,31]
[335401622,1724191838969,-436.62,0.000307,31]
[335401623,1724191838979,-436.62,0.000307,31]
[335401624,1724191838989,-436.62,0.000307,31]
[335401625,1724191838999,-436.62,0.000307,31]
[335401626,1724191839009,-436.62,0.000307,31]
[335401627,1724191839020,-436.62,0.000307,31]
[335401628,1724191839030,-436.62,0.000307,31]
[335401629,1724191839042,-436.62,0.000307,31]
[335401630,1724191839053,-436.62,0.000307,31]
[335401631,1724191839063,-436.62,0.000307,31]
[335401632,1724191839072,-436.62,0.000307,31]
[335401633,1724191839082,-436.62,0.000307,31]
[335401634,1724191839091,-300.0,0.00031,4]
[335401635,1724191839101,-500.0,0.00031383,7]
[335401636,1724191839111,-300.0,0.00032,5]
[335401637,1724191839120,-1554.274,0.00032104,2]
[335401638,1724191839129,-7726.0,0.00032104,2]
[335401639,1724191839139,-157.4,0.00032105,3]
[335401640,1724191839148,-151.0,0.00032105,3]
[335401641,1724191839157,-525.47617209,0.00032248,2]
[335401642,1724191839167,-436.62,0.000327,31]
[335401643,1724191839176,-436.62,0.000327,31]
[335401644,1724191839186,-436.62,0.000327,31]
[335401645,1724191839196,-436.62,0.000327,31]
[335401646,1724191839206,-436.62,0.000327,31]
[335401647,1724191839216,-436.62,0.000327,31]
[335401648,1724191839227,-436.62,0.000327,31]
[335401649,1724191839237,-436.62,0.000327,31]
[335401650,1724191839249,-436.62,0.000327,31]
[335401651,1724191839259,-436.62,0.000327,31]
[335401652,1724191839269,-436.62,0.000327,31]
[335401653,1724191839279,-436.62,0.000327,31]
[335401654,1724191839289,-436.62,0.000327,31]
[335401655,1724191839299,-436.62,0.000327,31]
[335401656,1724191839309,-436.62,0.000327,31]
[335401657,1724191839319,-436.62,0.000327,31]
[335401658,1724191839330,-436.62,0.000327,31]
[335401659,1724191839340,-436.62,0.000327,31]
[335401660,1724191839351,-436.62,0.000327,31]
[335401661,1724191839363,-436.62,0.000327,31]
[335401662,1724191839376,-436.62,0.000327,31]
[335401663,1724191839386,-436.62,0.000327,31]
[335401664,1724191839396,-436.62,0.000327,31]
[335401665,1724191839406,-436.62,0.000327,31]
[335401666,1724191839417,-11200.53296479,0.00033,120]
[335401667,1724191839426,-300.0,0.00033,7]
[335401668,1724191839436,-237.0,0.00033,2]
[335401669,1724191839446,-237.0,0.00033,2]
[335401670,1724191839455,-150.603,0.00033097,2]
[335401671,1724191839464,-155.12080504,0.00033234,3]
[335401672,1724191839472,-153.0,0.0003337,2]
[335401673,1724191839481,-157.4,0.00033552,4]
[335401674,1724191839490,-151.0,0.00033552,4]
[335401675,1724191839499,-232.296475,0.00033626,2]
[335401676,1724191839509,-165.343809,0.00033805,2]
[335401678,1724191839518,-300.0,0.00034,9]
[335401679,1724191839528,-4661.4390819,0.00034112,2]
[335401680,1724191839541,-256.347595,0.00034247,2]
[335401681,1724191839551,-4661.4390819,0.00034426,2]
[335401682,1724191839563,-187.77,0.0003458,3]
[335401683,1724191839574,-500.0,0.00034629,7]
[335401684,1724191839585,-500.0,0.00034629,7]
[335401685,1724191839596,-179.48213387,0.00034629,7]
[335401686,1724191839606,-155.64992923,0.00034629,7]
[335401687,1724191839618,-500.0,0.00034629,7]
[335401688,1724191839635,-500.0,0.00034629,7]
[335401689,1724191839644,-36158.0554754,0.0003463,4]
[335401691,1724191839653,-18141.2227294,0.0003464,9]
[335401692,1724191839663,-72316.1109509,0.0003464,4]
[335401693,1724191839673,-36158.0554754,0.0003465,4]
[335401694,1724191839682,-36158.0554754,0.0003466,4]
[335401695,1724191839692,-88888.0,0.0003467,5]
[335401696,1724191839702,-4661.43908192,0.00034677,2]
[335401697,1724191839712,-2000.0,0.0003468,2]
[335401698,1724191839722,-5954.15157957,0.0003475,4]
[335401718,1724191840250,-66361.95937133,0.0003475,4]
[335401720,1724191840261,-500.0,0.00034757,7]
[335401721,1724191840271,-36158.0554754,0.0003476,4]
[335401722,1724191840281,-341.74103395,0.000348,31]
[335401723,1724191840296,-94.87896605,0.000348,31]
[335401724,1724191840305,-436.62,0.000348,31]
[335401725,1724191840314,-436.62,0.000348,31]
[335401726,1724191840324,-436.62,0.000348,31]
[335401727,1724191840334,-436.62,0.000348,31]
[335401728,1724191840343,-436.62,0.000348,31]
[335401729,1724191840353,-436.62,0.000348,31]
[335401730,1724191840363,-436.62,0.000348,31]
[335401731,1724191840373,-436.62,0.000348,31]
[335401732,1724191840382,-436.62,0.000348,31]
[335401733,1724191840392,-436.62,0.000348,31]
[335401734,1724191840401,-436.62,0.000348,31]
[335401735,1724191840411,-436.62,0.000348,31]
[335401736,1724191840421,-436.62,0.000348,31]
[335401737,1724191840430,-436.62,0.000348,31]
[335401738,1724191840440,-436.62,0.000348,31]
[335401739,1724191840449,-505.48265177,0.00034811,7]
[335401740,1724191840459,-525.47617209,0.00034831,2]
[335401741,1724191840468,-150.112233,0.000349,9]
[335401742,1724191840477,-150.112233,0.000349,5]
[335401743,1724191840488,-536.68050093,0.000349,2]
[335401744,1724191840497,-660.84079653,0.0003493,2]
[335401745,1724191840508,-500.0,0.0003493,2]
[335401746,1724191840519,-507.00804052,0.0003493,2]
[335401747,1724191840529,-17360.96728677,0.00034931,9]
[335401748,1724191840541,-19735.94007408,0.00034931,60]
[335401784,1724191843281,-251.0,0.00032285,2]
[335401786,1724191843291,-1201.67108804,0.00033894,2]
[335401873,1724191846184,-160.83387276,0.00024658,2]
[335401874,1724191846195,-2697.96575261,0.00033894,2]
[335401875,1724191846205,-887.0782621,0.00034074,2]
[335401876,1724191871968,260.386,0.00017598,2]
[335401877,1724191871990,138.31310085,0.00017598,2]
[335401878,1724191874885,27.89489915,0.00017598,2]
[335401879,1724191874907,125.18099611,0.00017598,2]
[335401880,1724191874927,196.0,0.00017598,2]
[335401892,1724192753145,-154.76012181,0.00013333,2]
[335401893,1724192753167,-351.06069057,0.00013497,3]
[335401899,1724192826099,-154.66746495,0.00013792,2]
[335401900,1724192826121,-31.99094225,0.00013971,2]
[335401901,1724192827094,-570.82959735,0.00013971,2]
[335401902,1724192827117,-2190.01852431,0.00014245,2]
[335401903,1724192827141,-9.17645791,0.00014247,2]
[335401905,1724192838100,-817.60790766,0.00013497,2]
[335401906,1724192838122,-148.63522309,0.00014247,2]
[335401907,1724192838145,-185.83718,0.00014247,2]
[335401908,1724192838167,-2110.49381298,0.0001636,3]
[335401909,1724192838189,-262.47312139,0.00016438,2]
[335401910,1724192838209,-782.65797788,0.00016977,2]
[335401911,1724192838231,-3551.98524836,0.00017898,2]
[335401912,1724192853193,-483.50683086,0.00014245,2]
[335401913,1724192853216,-1114.18654459,0.00017898,2]
[335401918,1724192946153,-3119.62182307,0.00016336,2]
[335401919,1724192946178,-201.1978182,0.00016438,2]
[335401920,1724192946199,-1202.48489319,0.00017898,2]
[335401922,1724192950117,-4474.28030097,0.00017898,2]
[335401923,1724192956547,77.84089128,0.00014519,3]
[335401924,1724192956572,174.26254909,0.00014519,3]
[335401925,1724192961112,-172.23157384,0.00014519,3]
[335401926,1724192967147,154.76012181,0.00014519,4]
[335401927,1724192970130,-193.20437383,0.00019135,2]
[335402019,1724193038192,-104.59562617,0.00019135,2]
[335402021,1724193038202,-154.74467129,0.0002,2]
[335402023,1724193038212,-226.11908431,0.0002,2]
[335402025,1724193038222,-287.15761358,0.0002,2]
[335402027,1724193038232,-156.6552172,0.0002,2]
[335402029,1724193038241,-297.8,0.00020577,2]
[335402031,1724193038251,-185.83718,0.00020707,2]
[335402034,1724193038261,-150.0,0.00021,2]
[335402036,1724193038270,-173.0811658,0.00021103,2]
[335402038,1724193038280,-953.45396956,0.00021105,2]
[335402040,1724193038289,-154.60575532,0.00021105,2]
[335402042,1724193038299,-164.022117,0.00021234,2]
[335402044,1724193038310,-645.39369049,0.00021245,2]
[335402046,1724193038321,-154.62117811,0.00021245,2]
[335402060,1724193038441,-500.0,0.00021852,2]
[335402062,1724193038459,-302.27461649,0.00022,2]
[335402064,1724193038469,-297.8,0.00022019,2]
[335402067,1724193038479,-302.27461649,0.0002222,2]
[335402069,1724193038488,-302.27461649,0.0002244,2]
[335402070,1724193038498,-302.27461649,0.0002266,2]
[335402072,1724193038507,-167.687355,0.00022739,2]
[335402074,1724193038517,-302.27461649,0.0002288,2]
[335402077,1724193038526,-453.53253302,0.000231,4]
[335402079,1724193038535,-251.0,0.00023163,2]
[335402081,1724193038546,-297.8,0.00023461,2]
[335402083,1724193038556,-151.0,0.00023461,2]
[335402085,1724193038566,-500.0,0.00023765,2]
[335402087,1724193038576,-500.0,0.00024266,2]
[335402089,1724193038587,-882.96114551,0.00024349,2]
[335402091,1724193038597,-882.96114551,0.00024349,2]
[335402093,1724193038606,-160.83387276,0.00024756,2]
[335402095,1724193038615,-297.8,0.00024904,2]
[335402097,1724193038624,-151.0,0.00024904,2]
[335402100,1724193038634,-308.19214429,0.00025,2]
[335402102,1724193038657,-258.18032213,0.00025,120]
[335402104,1724193038666,-199.0,0.00025,2]
[335402106,1724193038676,-503.79102748,0.00025,2]
[335402108,1724193038685,-503.79102748,0.0002525,2]
[335402110,1724193038696,-500.0,0.00025305,2]
[335402112,1724193038706,-500.0,0.00025326,2]
[335402115,1724193038717,-503.79102748,0.000255,2]
[335402117,1724193038728,-503.53978522,0.0002575,2]
[335402119,1724193038740,-232.11968218,0.00026,120]
[335402121,1724193038751,-297.8,0.00026346,2]
[335402123,1724193038761,-151.0,0.00026346,2]
[335402125,1724193038771,-7458.94652043,0.0002649,2]
[335402127,1724193038781,-642.94234558,0.00026535,2]
[335402130,1724193038792,-1401.72,0.000266,31]
[335402132,1724193038802,-1401.72,0.000266,31]
[335402134,1724193038812,-1401.72,0.000266,31]
[335402136,1724193038823,-1401.72,0.000266,31]
[335402138,1724193038833,-1401.72,0.000266,31]
[335402140,1724193038844,-1401.72,0.000266,31]
[335402142,1724193038854,-1401.72,0.000266,31]
[335402144,1724193038864,-1401.72,0.000266,31]
[335402146,1724193038875,-1401.72,0.000266,31]
[335402148,1724193038885,-1401.72,0.000266,31]
[335402150,1724193038895,-1401.72,0.000266,31]
[335402152,1724193038906,-1401.72,0.000266,31]
[335402155,1724193038918,-503.33031317,0.00026718,2]
[335402157,1724193038929,-9657.75285226,0.000268,2]
[335402159,1724193038939,-185.83718,0.00027167,2]
[335402161,1724193038948,-500.0,0.00027289,2]
[335402163,1724193038959,-297.8,0.00027788,2]
[335402165,1724193038970,-151.0,0.00027788,2]
[335402167,1724193038981,-171.493404,0.00027811,2]
[335402169,1724193038991,-174.492612,0.00027811,2]
[335402171,1724193039001,-168.584172,0.00027811,2]
[335402173,1724193039011,-166.332644,0.00027811,2]
[335402176,1724193039021,-1648.56480432,0.0002799,2]
[335402178,1724193039031,-224.399999,0.00028,2]
[335402180,1724193039041,-4900.0,0.00028,2]
[335402182,1724193039051,-339.14513774,0.00028,30]
[335402184,1724193039061,-167.250998,0.0002815,2]
[335402186,1724193039071,-171.493404,0.00028275,2]
[335402188,1724193039080,-166.332644,0.00028275,2]
[335402190,1724193039090,-1401.72,0.000286,31]
[335402192,1724193039101,-1401.72,0.000286,31]
[335402194,1724193039114,-1401.72,0.000286,31]
[335402196,1724193039126,-1401.72,0.000286,31]
[335402198,1724193039136,-1401.72,0.000286,31]
[335402200,1724193039146,-1401.72,0.000286,31]
[335402203,1724193039158,-1401.72,0.000286,31]
[335402205,1724193039168,-1401.72,0.000286,31]
[335402207,1724193039178,-1401.72,0.000286,31]
[335402209,1724193039189,-1401.72,0.000286,31]
[335402211,1724193039198,-1401.72,0.000286,31]
[335402213,1724193039210,-1401.72,0.000286,31]
[335402215,1724193039221,-1401.72,0.000286,31]
[335402217,1724193039230,-1401.72,0.000286,31]
[335402220,1724193039240,-1401.72,0.000286,31]
[335402222,1724193039250,-1401.72,0.000286,31]
[335402224,1724193039259,-1401.72,0.000286,31]
[335402226,1724193039268,-1401.72,0.000286,31]
[335402228,1724193039278,-1401.72,0.000286,31]
[335402230,1724193039287,-1401.72,0.000286,31]
[335402232,1724193039297,-1401.72,0.000286,31]
[335402234,1724193039307,-1401.72,0.000286,31]
[335402236,1724193039316,-1401.72,0.000286,31]
[335402238,1724193039326,-1401.72,0.000286,31]
[335402240,1724193039336,-171.493404,0.00028739,2]
[335402242,1724193039345,-166.332644,0.00028739,2]
[335402244,1724193039355,-300.0,0.00029,2]
[335402246,1724193039365,-500.0,0.00029131,2]
[335402248,1724193039375,-187.77,0.00029172,3]
[335402250,1724193039386,-500.0,0.00029191,2]
[335402252,1724193039396,-155.64992923,0.00029191,2]
[335402255,1724193039407,-500.0,0.00029191,2]
[335402257,1724193039417,-500.0,0.00029191,2]
[335402259,1724193039427,-500.0,0.00029191,2]
[335402261,1724193039438,-500.0,0.00029191,2]
[335402263,1724193039451,-283.65283102,0.00029191,2]
[335402265,1724193039461,-500.0,0.00029191,2]
[335402267,1724193039471,-863.1450278,0.00029193,2]
[335402270,1724193039485,-168.584172,0.00029202,2]
[335402272,1724193039495,-171.493404,0.00029202,2]
[335402274,1724193039504,-166.332644,0.00029202,2]
[335402276,1724193039514,-297.8,0.0002923,2]
[335402278,1724193039524,-151.0,0.0002923,2]
[335402280,1724193039536,-153.0,0.00029698,2]
[335402283,1724193039546,-153.0,0.00029698,2]
[335402285,1724193039556,-306.33034232,0.0003,5]
[335402287,1724193039567,-151.0,0.0003,120]
[335402289,1724193039576,-630.0,0.0003,120]
[335402291,1724193039586,-300.0,0.0003,2]
[335402293,1724193039595,-165.0,0.0003,2]
[335402295,1724193039606,-235.0,0.0003,2]
[335402297,1724193039616,-1050.03460103,0.00030599,2]
[335402299,1724193039626,-70249.9399979,0.0003067,4]
[335402301,1724193039636,-297.8,0.00030672,2]
[335402303,1724193039646,-151.0,0.00030672,2]
[335402305,1724193039658,-70249.9399979,0.0003068,4]
[335402307,1724193039671,-1401.72,0.000307,31]
[335402309,1724193039680,-1401.72,0.000307,31]
[335402311,1724193039690,-1401.72,0.000307,31]
[335402314,1724193039701,-1401.72,0.000307,31]
[335402316,1724193039712,-1401.72,0.000307,31]
[335402318,1724193039723,-1401.72,0.000307,31]
[335402320,1724193039734,-1401.72,0.000307,31]
[335402322,1724193039745,-1401.72,0.000307,31]
[335402325,1724193039757,-1401.72,0.000307,31]
[335402327,1724193039768,-1401.72,0.000307,31]
[335402329,1724193039778,-1401.72,0.000307,31]
[335402331,1724193039788,-1401.72,0.000307,31]
[335402333,1724193039797,-1401.72,0.000307,31]
[335402335,1724193039808,-1401.72,0.000307,31]
[335402338,1724193039818,-1401.72,0.000307,31]
[335402340,1724193039828,-1401.72,0.000307,31]
[335402343,1724193039838,-1401.72,0.000307,31]
[335402346,1724193039848,-1401.72,0.000307,31]
[335402348,1724193039859,-1401.72,0.000307,31]
[335402350,1724193039869,-1401.72,0.000307,31]
[335402352,1724193039879,-1401.72,0.000307,31]
[335402354,1724193039888,-1401.72,0.000307,31]
[335402356,1724193039899,-1401.72,0.000307,31]
[335402358,1724193039910,-1401.72,0.000307,31]
[335402360,1724193039920,-300.0,0.00031,4]
[335402362,1724193039930,-1050.03460099,0.00031049,2]
[335402364,1724193039940,-500.0,0.00031063,7]
[335402366,1724193039950,-35124.9699989,0.0003129,4]
[335402368,1724193039960,-907.81,0.000313,14]
[335402370,1724193039970,-1050.03460099,0.000315,2]
[335402372,1724193039980,-165.0,0.00031644,2]
[335402374,1724193039990,-1050.03460099,0.0003195,2]
[335402376,1724193039999,-3000.0,0.00032,2]
[335402378,1724193040009,-300.0,0.00032,5]
[335402380,1724193040019,-46730.17900001,0.00032084,9]
[335402383,1724193040028,-35124.9699989,0.00032084,4]
[335402385,1724193040039,-297.8,0.00032115,3]
[335402387,1724193040048,-151.0,0.00032115,3]
[335402389,1724193040059,-500.0,0.00032129,7]
[335402391,1724193040069,-39523.11804284,0.00032345,4]
[335402427,1724193040413,-30726.82195506,0.00032345,4]
[335402429,1724193040423,-1050.03460099,0.000324,2]
[335402430,1724193040432,-500.0,0.00032499,2]
[335402431,1724193040442,-8680.48364338,0.000325,9]
[335402432,1724193040453,-513419.46425423,0.000325,60]
[335402433,1724193040464,-150.112233,0.000325,5]
[335402434,1724193040474,-150.112233,0.000325,9]
[335402435,1724193040484,-150.112233,0.000325,9]
[335402436,1724193040493,-151.0,0.000325,7]
[335402437,1724193040502,-151.0,0.000325,7]
[335402438,1724193040512,-151.0,0.000325,7]
[335402439,1724193040522,-151.0,0.000325,7]
[335402440,1724193040531,-324.3,0.000325,7]
[335402441,1724193040540,-151.0,0.000325,7]
[335402442,1724193040549,-151.0,0.000325,7]
[335402443,1724193040559,-151.0,0.000325,7]
[335402444,1724193040568,-152.506739,0.000325,7]
[335402446,1724193040578,-152.506739,0.000325,7]
[335402448,1724193040588,-151.0,0.000325,7]
[335402450,1724193040597,-226.164493,0.000325,7]
[335402452,1724193040606,-226.164493,0.000325,7]
[335402454,1724193040617,-151.0,0.000325,7]
[335402456,1724193040626,-151.0,0.000325,7]
[335402458,1724193040636,-1401.72,0.000327,31]
[335402460,1724193040646,-1401.72,0.000327,31]
[335402462,1724193040659,-1401.72,0.000327,31]
[335402464,1724193040669,-1401.72,0.000327,31]
[335402466,1724193040679,-1401.72,0.000327,31]
[335402468,1724193040689,-1401.72,0.000327,31]
[335402470,1724193040699,-1401.72,0.000327,31]
[335402473,1724193040709,-1401.72,0.000327,31]
[335402475,1724193040718,-1401.72,0.000327,31]
[335402477,1724193040728,-1401.72,0.000327,31]
[335402479,1724193040738,-1401.72,0.000327,31]
[335402481,1724193040748,-1401.72,0.000327,31]
[335402483,1724193040757,-1401.72,0.000327,31]
[335402485,1724193040767,-1401.72,0.000327,31]
[335402487,1724193040777,-1401.72,0.000327,31]
[335402489,1724193040786,-1401.72,0.000327,31]
[335402491,1724193040797,-1401.72,0.000327,31]
[335402493,1724193040806,-1401.72,0.000327,31]
[335402504,1724193040817,-1401.72,0.000327,31]
[335402507,1724193040924,-1401.72,0.000327,31]
[335402509,1724193040935,-1401.72,0.000327,31]
[335402511,1724193040945,-1401.72,0.000327,31]
[335402513,1724193040955,-1401.72,0.000327,31]
[335402515,1724193040964,-1401.72,0.000327,31]
[335402517,1724193040973,-150.0,0.00032999,2]
[335402519,1724193040982,-11200.53296479,0.00033,120]
[335402521,1724193040991,-300.0,0.00033,7]
[335402523,1724193041000,-176.8102754,0.00033,120]
[335402525,1724193041010,-235.0,0.00033,2]
[335402527,1724193041019,-235.0,0.00033,2]
[335402529,1724193041028,-5146.15148411,0.00033154,40]
[335402531,1724193041038,-5000.0,0.00033154,41]
[335402533,1724193041048,-5000.0,0.00033154,42]
[335402535,1724193041058,-5000.0,0.00033154,40]
[335402537,1724193041067,-5000.0,0.00033154,43]
[335402539,1724193041078,-1554.274,0.00033166,2]
[335402541,1724193041087,-150.603,0.00033166,2]
[335402544,1724193041098,-155.12080504,0.00033234,3]
[335402546,1724193041111,-4959.22990111,0.00033555,2]
[335402548,1724193041121,-297.8,0.00033557,4]
[335402550,1724193041132,-151.0,0.00033557,4]
[335402552,1724193041143,-185.83718,0.00033626,2]
[335402554,1724193041154,-4959.22990111,0.00033838,2]
[335402557,1724193041172,-150.0,0.00033999,2]
[335402559,1724193041181,-300.0,0.00034,9]
[335402561,1724193041190,-22620.53000276,0.00034,120]
[335402563,1724193041200,-907.81,0.00034,14]
[335402565,1724193041211,-4959.22990111,0.00034054,2]
[335402567,1724193041221,-489.18411625,0.00034074,3]
[335402569,1724193041230,-1214.54488791,0.00034074,4]
[335402571,1724193041244,-479.3846498,0.00034074,4]
[335402573,1724193041253,-153.0,0.00034192,2]
[335402575,1724193041263,-415.0567958,0.00034239,2]
[335402577,1724193041273,-256.347596,0.00034247,2]
[335402579,1724193041283,-4959.22990111,0.00034356,2]
[335402581,1724193041292,-500.0,0.0003452,21]
[335402583,1724193041302,-500.0,0.0003452,21]
[335402585,1724193041311,-500.0,0.0003452,21]
[335402587,1724193041322,-500.0,0.0003452,21]
[335402589,1724193041333,-217.88,0.0003452,21]
[335402592,1724193041345,-4959.22990115,0.00034555,2]
[335402594,1724193041356,-150.0,0.00034558,2]
[335402596,1724193041367,-153.0,0.00034636,2]
[335402598,1724193041376,-153.0,0.00034636,2]
[335402600,1724193041386,-153.0,0.0003464,2]
[335402602,1724193041395,-153.0,0.0003464,2]